fUST/lending_fUST_20241108
["ID","MTS","AMOUNT","RATE_DAILY","PERIOD"]
[341632025,1731046906170,-500.0,0.00022191,2]
[341632026,1731046906191,-500.0,0.00022191,2]
[341632027,1731046906212,-500.0,0.00022191,2]
[341632028,1731046906233,-500.0,0.00022191,2]
[341632029,1731046906254,-628.56391685,0.00022191,2]
[341632030,1731046906276,-500.0,0.00022191,2]
[341632031,1731046906300,-500.0,0.00022191,2]
[341632032,1731046906320,-500.0,0.00022191,2]
[341632033,1731046906341,-500.0,0.00022191,2]
[341632034,1731046906363,-500.0,0.00022191,2]
[341632035,1731046906384,-582.87,0.00022191,2]
[341632036,1731046906405,-1707.6,0.00022191,2]
[341632037,1731046906427,-441.88722109,0.00022191,2]
[341632038,1731046906449,-500.0,0.00022191,2]
[341632039,1731046906470,-603.66,0.00022191,2]
[341632040,1731046906492,-500.0,0.00022191,2]
[341632041,1731046906513,-500.0,0.00022191,2]
[341632042,1731046906533,-500.0,0.00022191,2]
[341632043,1731046906555,-500.0,0.00022191,2]
[341632044,1731046906576,-698.74,0.00022191,2]
[341632045,1731046906596,-500.0,0.00022191,2]
[341632046,1731046906617,-821.83,0.00022191,2]
[341632047,1731046906637,-1346.02,0.00022191,2]
[341632048,1731046906658,-500.0,0.00022191,2]
[341632049,1731046906679,-500.0,0.00022191,2]
[341632050,1731046906702,-578.54869807,0.00022191,2]
[341632051,1731046906723,-500.0,0.00022191,2]
[341632052,1731046906744,-500.0,0.00022191,2]
[341632053,1731046906765,-500.0,0.00022191,2]
[341632054,1731046906786,-500.0,0.00022191,2]
[341632055,1731046906812,-4559.28,0.00022191,2]
[341632056,1731046906833,-500.0,0.00022191,2]
[341632057,1731046906854,-500.0,0.00022191,2]
[341632058,1731046906874,-500.0,0.00022191,2]
[341632059,1731046906897,-500.0,0.00022191,2]
[341632060,1731046906919,-500.0,0.00022191,2]
[341632061,1731046906941,-500.0,0.00022191,2]
[341632062,1731046906964,-500.0,0.00022191,2]
[341632063,1731046906985,-500.0,0.00022191,2]
[341632064,1731046907006,-500.0,0.00022191,2]
[341632065,1731046907027,-500.0,0.00022191,2]
[341632066,1731046907051,-500.0,0.00022191,2]
[341632067,1731046907071,-747.57,0.00022191,2]
[341632068,1731046907092,-656.2,0.00022191,2]
[341632069,1731046907116,-9245.62,0.00022191,2]
[341632070,1731046907138,-613.27546781,0.00022191,2]
[341632071,1731046907159,-500.0,0.00022191,2]
[341632072,1731046907180,-500.0,0.00022191,2]
[341632073,1731046907201,-522.27278293,0.00022191,2]
[341632074,1731046907223,-500.0,0.00022191,2]
[341632075,1731046907248,-290.42593584,0.00022191,2]
[341632076,1731046907268,-370.32628358,0.00022191,2]
[341632077,1731046907289,-500.0,0.00022191,2]
[341632078,1731046907318,-487.27084624,0.00022191,2]
[341632079,1731046907338,-500.0,0.00022191,2]
[341632080,1731046907447,-9272.75,0.00022191,2]
[341632081,1731046907475,-3083.44,0.00022191,2]
[341632082,1731046907498,-500.0,0.00022191,2]
[341632083,1731046907521,-3460.92,0.00022191,2]
[341632084,1731046907543,-500.0,0.00022191,2]
[341632085,1731046907565,-500.0,0.00022191,2]
[341632086,1731046907588,-500.0,0.00022191,2]
[341632087,1731046907610,-966.31,0.00022191,2]
[341632088,1731046907631,-500.0,0.00022191,2]
[341632089,1731046907652,-993.84,0.00022191,2]
[341632090,1731046907672,-567.29,0.00022191,2]
[341632091,1731046907693,-500.0,0.00022191,2]
[341632092,1731046907714,-500.0,0.00022191,2]
[341632093,1731046907734,-500.0,0.00022191,2]
[341632094,1731046907755,-488.58438961,0.00022191,2]
[341632095,1731046907776,-585.64495863,0.00022191,2]
[341632096,1731046907797,-500.0,0.00022191,2]
[341632097,1731046907817,-500.0,0.00022191,2]
[341632098,1731046907838,-537.79849841,0.00022191,2]
[341632099,1731046907859,-500.0,0.00022191,2]
[341632100,1731046907879,-500.0,0.00022191,2]
[341632101,1731046907901,-308.09432832,0.00022191,2]
[341632102,1731046907921,-500.0,0.00022191,2]
[341632103,1731046907943,-500.0,0.00022191,2]
[341632104,1731046907965,-500.0,0.00022191,2]
[341632105,1731046907984,-500.0,0.00022191,2]
[341632106,1731046908005,-500.0,0.00022191,2]
[341632107,1731046908026,-501.93,0.00022191,2]
[341632108,1731046908048,-537.71,0.00022191,2]
[341632109,1731046908072,-500.0,0.00022191,2]
[341632110,1731046908093,-500.0,0.00022191,2]
[341632111,1731046908117,-500.0,0.00022191,2]
[341632112,1731046908139,-500.0,0.00022191,2]
[341632113,1731046908161,-500.0,0.00022191,2]
[341632114,1731046908182,-500.0,0.00022191,2]
[341632115,1731046908205,-500.0,0.00022191,2]
[341632116,1731046908229,-500.0,0.00022191,2]
[341632117,1731046908252,-616.56,0.00022191,2]
[341632118,1731046908274,-784.35,0.00022191,2]
[341632119,1731046908296,-500.0,0.00022191,2]
[341632120,1731046908320,-500.0,0.00022191,2]
[341632121,1731046908342,-500.0,0.00022191,2]
[341632122,1731046908364,-500.0,0.00022191,2]
[341632123,1731046908387,-500.0,0.00022191,2]
[341632124,1731046908410,-500.0,0.00022191,2]
[341632125,1731046908431,-756.32,0.00022191,2]
[341632126,1731046908453,-500.0,0.00022191,2]
[341632127,1731046908475,-500.0,0.00022191,2]
[341632128,1731046908496,-500.0,0.00022465,2]
[341632129,1731046908518,-500.0,0.00022465,2]
[341632130,1731046908539,-500.0,0.00022465,2]
[341632131,1731046908561,-500.0,0.00022465,2]
[341632132,1731046908583,-622.25661589,0.00022465,2]
[341632133,1731046908606,-500.0,0.00022465,2]
[341632134,1731046908629,-549.06880751,0.00022465,2]
[341632135,1731046908652,-500.0,0.00022465,2]
[341632136,1731046908673,-500.0,0.00022465,2]
[341632137,1731046908696,-500.0,0.00022465,2]
[341632138,1731046908718,-500.0,0.00022465,2]
[341632139,1731046908741,-500.0,0.00022465,2]
[341632140,1731046908762,-500.0,0.00022465,2]
[341632141,1731046908784,-500.0,0.00022465,2]
[341632142,1731046908808,-500.0,0.00022465,2]
[341632143,1731046908829,-500.0,0.00022465,2]
[341632144,1731046908851,-500.0,0.00022465,2]
[341632145,1731046908871,-500.0,0.00022465,2]
[341632146,1731046908892,-500.0,0.00022465,2]
[341632147,1731046908914,-500.0,0.00022465,2]
[341632148,1731046908936,-500.0,0.00022465,2]
[341632149,1731046908957,-355.97780136,0.00022465,2]
[341632150,1731046908978,-500.0,0.00022465,2]
[341632151,1731046908999,-500.0,0.00022465,2]
[341632152,1731046909020,-500.0,0.00022465,2]
[341632153,1731046909041,-500.0,0.00022465,2]
[341632154,1731046909064,-500.0,0.00022465,2]
[341632155,1731046909085,-536.013328,0.00022465,2]
[341632156,1731046909107,-500.0,0.00022465,2]
[341632157,1731046909129,-258.64099965,0.00022465,2]
[341632158,1731046909151,-500.0,0.00022465,2]
[341632159,1731046909172,-500.0,0.00022465,2]
[341632160,1731046909194,-500.0,0.00022465,2]
[341632161,1731046909215,-500.0,0.00022465,2]
[341632162,1731046909236,-500.0,0.00022465,2]
[341632163,1731046909257,-500.0,0.00022465,2]
[341632164,1731046909279,-500.0,0.00022465,2]
[341632165,1731046909303,-500.0,0.00022465,2]
[341632166,1731046909324,-530.9419479,0.00022465,2]
[341632167,1731046909345,-500.0,0.00022465,2]
[341632169,1731046909366,-500.0,0.00022465,2]
[341632170,1731046909388,-532.19404274,0.00022465,2]
[341632171,1731046909408,-500.0,0.00022465,2]
[341632172,1731046909429,-500.0,0.00022465,2]
[341632173,1731046909450,-500.0,0.00022465,2]
[341632174,1731046909472,-500.0,0.00022465,2]
[341632175,1731046909493,-500.0,0.00022465,2]
[341632176,1731046909513,-582.87,0.00022465,2]
[341632177,1731046909534,-1707.6,0.00022465,2]
[341632178,1731046909555,-500.0,0.00022465,2]
[341632179,1731046909576,-603.66,0.00022465,2]
[341632180,1731046909596,-500.0,0.00022465,2]
[341632181,1731046909618,-500.0,0.00022465,2]
[341632182,1731046909639,-500.0,0.00022465,2]
[341632183,1731046909659,-698.74,0.00022465,2]
[341632184,1731046909680,-500.0,0.00022465,2]
[341632185,1731046909701,-821.83,0.00022465,2]
[341632186,1731046909811,-1346.02,0.00022465,2]
[341632187,1731046909832,-500.0,0.00022465,2]
[341632188,1731046909853,-500.0,0.00022465,2]
[341632189,1731046909875,-500.0,0.00022465,2]
[341632190,1731046909895,-500.0,0.00022465,2]
[341632191,1731046909916,-500.0,0.00022465,2]
[341632192,1731046909937,-500.0,0.00022465,2]
[341632193,1731046909960,-4559.28,0.00022465,2]
[341632194,1731046909982,-500.0,0.00022465,2]
[341632195,1731046910004,-616.3945092,0.00022465,2]
[341632196,1731046910025,-500.0,0.00022465,2]
[341632197,1731046910046,-500.0,0.00022465,2]
[341632198,1731046910070,-500.0,0.00022465,2]
[341632199,1731046910092,-500.0,0.00022465,2]
[341632200,1731046910117,-500.0,0.00022465,2]
[341632201,1731046910139,-500.0,0.00022465,2]
[341632202,1731046910161,-500.0,0.00022465,2]
[341632203,1731046910184,-500.0,0.00022465,2]
[341632204,1731046910206,-747.57,0.00022465,2]
[341632205,1731046910230,-656.2,0.00022465,2]
[341632206,1731046910253,-7135.66977038,0.00022465,2]
[341632215,1731047072721,279.1201324,0.00020807,2]
[341632217,1731047096508,523.512945,0.00020711,2]
[341632220,1731047114701,158.181229,0.00013973,2]
[341632221,1731047116864,5000.0,0.00020843,2]
[341632223,1731047125142,5000.0,0.00020843,2]
[341632224,1731047133098,250.0,0.00020733,2]
[341632225,1731047133770,5000.0,0.00020843,2]
[341632226,1731047143205,5000.0,0.00020843,2]
[341632227,1731047151184,5000.0,0.00020843,2]
[341632228,1731047158967,5000.0,0.00020843,2]
[341632229,1731047166988,5000.0,0.00020843,2]
[341632230,1731047175247,5000.0,0.00020843,2]
[341632231,1731047183355,5000.0,0.00020843,2]
[341632232,1731047191460,5000.0,0.00020843,2]
[341632233,1731047200043,1475.66227657,0.00020843,2]
[341632235,1731047207904,2447.63600758,0.00020843,2]
[341632236,1731047217850,175.315309,0.00020444,2]
[341632237,1731047220172,24900.0,0.00020807,2]
[341632262,1731047302587,269.98622586,0.00020796,2]
[341632264,1731047308857,1705.04647197,0.000176,2]
[341632265,1731047314033,831.92293621,0.00032259,120]
[341632266,1731047320037,2112.29559896,0.00020377,2]
[341632267,1731047320539,1321.5952558,0.0002,2]
[341632268,1731047321303,1265.33626153,0.0001,2]
[341632269,1731047324385,4351.70386856,0.00015,2]
[341632282,1731047384716,694.44444444,0.00020843,2]
[341632283,1731047405170,298.0,0.00020842,3]
[341632303,1731047433289,-1360.28974726,0.00020884,2]
[341632304,1731047433302,-859.92379926,0.00020884,2]
[341632305,1731047433596,-412.60757393,0.00020884,2]
[341632306,1731047433608,-410.59100478,0.00020884,2]
[341632312,1731047439110,-452.30146993,0.00020884,2]
[341632400,1731047444433,-2841.58250894,0.00020884,2]
[341632402,1731047444442,-328.2711096,0.00020896,2]
[341632404,1731047444451,-300.0,0.0002106,2]
[341632406,1731047444461,-300.0,0.0002106,2]
[341632408,1731047444470,-3000.0,0.00021061,2]
[341632410,1731047444487,-158.181229,0.00021209,2]
[341632412,1731047444497,-168.983471,0.00021533,2]
[341632414,1731047444507,-2400.97044838,0.00021817,2]
[341632416,1731047444516,-196.57221219,0.00021917,2]
[341632417,1731047444526,-500.0,0.00021917,2]
[341632419,1731047444536,-512.01958691,0.00021917,2]
[341632421,1731047444545,-500.0,0.00021917,2]
[341632423,1731047444555,-500.0,0.00021917,2]
[341632426,1731047444567,-500.0,0.00021917,2]
[341632428,1731047444578,-500.0,0.00021917,2]
[341632429,1731047444588,-500.0,0.00021917,2]
[341632431,1731047444598,-500.0,0.00021917,2]
[341632434,1731047444608,-500.0,0.00021917,2]
[341632436,1731047444618,-524.20646781,0.00021917,2]
[341632438,1731047444627,-500.0,0.00021917,2]
[341632440,1731047444636,-512.83323849,0.00021917,2]
[341632442,1731047444645,-583.9858738,0.00021917,2]
[341632444,1731047444654,-251.29744023,0.00021917,2]
[341632446,1731047444663,-528.40130365,0.00021917,2]
[341632447,1731047444672,-80.58001795,0.00021917,2]
[341632475,1731047444923,-177.00795999,0.00021917,2]
[341632477,1731047444935,-242.41202206,0.00021917,2]
[341632479,1731047444944,-1000.0,0.00021917,5]
[341632481,1731047444953,-500.0,0.00021917,2]
[341632483,1731047444963,-500.0,0.00021917,2]
[341632485,1731047444973,-309.56212148,0.00021917,2]
[341632487,1731047444984,-500.0,0.00021917,2]
[341632489,1731047444993,-500.0,0.00021917,2]
[341632491,1731047445002,-500.0,0.00021917,2]
[341632493,1731047445012,-500.0,0.00021917,2]
[341632495,1731047445020,-500.0,0.00021917,2]
[341632497,1731047445030,-250.0,0.00021917,2]
[341632499,1731047445039,-20.23527834,0.00021917,2]
[341632515,1731047445187,-479.76472166,0.00021917,2]
[341632518,1731047445197,-500.0,0.00021917,2]
[341632519,1731047445207,-500.0,0.00021917,2]
[341632521,1731047445217,-625.24896469,0.00021917,2]
[341632523,1731047445226,-500.0,0.00021917,2]
[341632525,1731047445236,-500.0,0.00021917,2]
[341632527,1731047445246,-500.0,0.00021917,2]
[341632530,1731047445256,-500.0,0.00021917,2]
[341632531,1731047445265,-500.0,0.00021917,2]
[341632534,1731047445275,-500.0,0.00021917,2]
[341632535,1731047445285,-500.0,0.00021917,2]
[341632537,1731047445295,-500.0,0.00021917,2]
[341632540,1731047445305,-305.03874938,0.00021917,2]
[341632541,1731047445314,-500.0,0.00021917,2]
[341632544,1731047445324,-500.0,0.00021917,2]
[341632545,1731047445335,-500.0,0.00021917,2]
[341632548,1731047445345,-500.0,0.00021917,2]
[341632549,1731047445355,-500.0,0.00021917,2]
[341632551,1731047445364,-500.0,0.00021917,2]
[341632553,1731047445374,-500.0,0.00021917,2]
[341632555,1731047445384,-1494.15,0.00021917,2]
[341632557,1731047445394,-500.0,0.00021917,2]
[341632559,1731047445404,-500.0,0.00021917,2]
[341632561,1731047445414,-528.2,0.00021917,2]
[341632564,1731047445424,-500.0,0.00021917,2]
[341632566,1731047445433,-500.0,0.00021917,2]
[341632568,1731047445443,-611.4,0.00021917,2]
[341632569,1731047445453,-500.0,0.00021917,2]
[341632572,1731047445463,-719.1,0.00021917,2]
[341632573,1731047445475,-500.0,0.00021917,2]
[341632575,1731047445487,-500.0,0.00021917,2]
[341632577,1731047445497,-1177.76,0.00021917,2]
[341632580,1731047445507,-500.0,0.00021917,2]
[341632582,1731047445518,-500.0,0.00021917,2]
[341632583,1731047445527,-500.0,0.00021917,2]
[341632585,1731047445538,-500.0,0.00021917,2]
[341632587,1731047445550,-500.0,0.00021917,2]
[341632590,1731047445560,-510.01,0.00021917,2]
[341632591,1731047445570,-318.68756427,0.00021917,2]
[341633061,1731047497186,215.0,0.00020843,4]
[341633062,1731047529889,224.68020876,0.00020843,3]
[341633064,1731047625524,164.231494,0.00013973,2]
[341633066,1731047818222,24900.0,0.00020713,2]
[341633067,1731047879955,8643.53313938,0.0002,2]
[341633068,1731047892308,261.756473,0.0002075,2]
[341633069,1731047899100,2800.0,0.0002,10]
[341633070,1731047974203,168.983471,0.00020713,2]
[341633071,1731047995691,694.44444444,0.00020843,2]
[341633072,1731048012667,-283.56873413,0.00027397,120]
[341633073,1731048012702,-170.108,0.00028797,120]
[341633074,1731048012739,-250.56774934,0.0003,120]
[341633075,1731048012772,-2269.0,0.0003,120]
[341633076,1731048012808,-200.0,0.0003,120]
[341633077,1731048012831,-151.0,0.0003,120]
[341633078,1731048012869,-151.0,0.0003,120]
[341633079,1731048012895,-4796.0,0.00030136,120]
[341633080,1731048012930,-1000.0,0.00031,120]
[341633081,1731048012952,-200.0,0.00031,120]
[341633082,1731048012975,-280.45781,0.00031,120]
[341633083,1731048012997,-200.0,0.00031,120]
[341633084,1731048013020,-4796.0,0.00031095,120]
[341633085,1731048013044,-170.129,0.00031127,120]
[341633086,1731048013099,-180.92,0.00031357,120]
[341633087,1731048013122,-500.0,0.00031357,120]
[341633088,1731048013149,-500.0,0.00031357,120]
[341633089,1731048013171,-500.0,0.00031357,120]
[341633090,1731048013191,-500.0,0.00031357,120]
[341633091,1731048013213,-500.0,0.00031357,120]
[341633092,1731048013232,-500.0,0.00031357,120]
[341633093,1731048013253,-526.53,0.00031357,120]
[341633094,1731048013276,-500.0,0.00031357,120]
[341633095,1731048013299,-500.0,0.00031357,120]
[341633096,1731048013320,-500.0,0.00031357,120]
[341633097,1731048013341,-500.0,0.00031357,120]
[341633098,1731048013363,-500.0,0.00031357,120]
[341633099,1731048013384,-500.0,0.00031357,120]
[341633100,1731048013411,-500.0,0.00031357,120]
[341633101,1731048013431,-500.0,0.00031357,120]
[341633102,1731048013452,-500.0,0.00031357,120]
[341633103,1731048013473,-500.0,0.00031357,120]
[341633104,1731048013496,-500.0,0.00031357,120]
[341633105,1731048013517,-500.0,0.00031357,120]
[341633106,1731048013539,-500.0,0.00031357,120]
[341633107,1731048013560,-500.0,0.00031357,120]
[341633108,1731048013582,-500.0,0.00031357,120]
[341633109,1731048013604,-500.0,0.00031357,120]
[341633110,1731048013626,-500.0,0.00031357,120]
[341633111,1731048013649,-500.0,0.00031357,120]
[341633112,1731048013671,-500.0,0.00031357,120]
[341633113,1731048013692,-500.0,0.00031357,120]
[341633114,1731048013714,-500.0,0.00031357,120]
[341633115,1731048013736,-500.0,0.00031357,120]
[341633116,1731048013757,-500.0,0.00031357,120]
[341633117,1731048013780,-500.0,0.00031357,120]
[341633118,1731048013803,-500.0,0.00031357,120]
[341633119,1731048013828,-500.0,0.00031357,120]
[341633120,1731048013851,-500.0,0.00031357,120]
[341633121,1731048013873,-500.0,0.00031357,120]
[341633122,1731048013895,-500.0,0.00031357,120]
[341633123,1731048013917,-500.0,0.00031357,120]
[341633124,1731048013942,-500.0,0.00031357,120]
[341633125,1731048013965,-500.0,0.00031357,120]
[341633126,1731048013997,-500.0,0.00031357,120]
[341633127,1731048014022,-500.0,0.00031357,120]
[341633128,1731048014046,-500.0,0.00031357,120]
[341633129,1731048014069,-500.0,0.00031357,120]
[341633130,1731048014091,-500.0,0.00031357,120]
[341633131,1731048014115,-500.0,0.00031357,120]
[341633132,1731048014140,-500.0,0.00031357,120]
[341633133,1731048014161,-500.0,0.00031357,120]
[341633134,1731048014182,-500.0,0.00031357,120]
[341633135,1731048014203,-500.0,0.00031357,120]
[341633136,1731048014225,-500.0,0.00031357,120]
[341633137,1731048014246,-500.0,0.00031357,120]
[341633138,1731048014267,-500.0,0.00031357,120]
[341633139,1731048014289,-500.0,0.00031357,120]
[341633140,1731048014310,-500.0,0.00031357,120]
[341633141,1731048014331,-500.0,0.00031357,120]
[341633142,1731048014352,-500.0,0.00031357,120]
[341633143,1731048014374,-500.0,0.00031357,120]
[341633144,1731048014397,-500.0,0.00031357,120]
[341633145,1731048014419,-500.0,0.00031357,120]
[341633146,1731048014441,-500.0,0.00031357,120]
[341633147,1731048014463,-500.0,0.00031357,120]
[341633148,1731048014485,-500.0,0.00031357,120]
[341633149,1731048014508,-500.0,0.00031357,120]
[341633150,1731048014530,-500.0,0.00031357,120]
[341633151,1731048014552,-500.0,0.00031357,120]
[341633152,1731048014574,-500.0,0.00031357,120]
[341633153,1731048014596,-500.0,0.00031357,120]
[341633154,1731048014618,-500.0,0.00031357,120]
[341633155,1731048014643,-500.0,0.00031357,120]
[341633156,1731048014665,-500.0,0.00031357,120]
[341633157,1731048014688,-500.0,0.00031357,120]
[341633158,1731048014710,-500.0,0.00031357,120]
[341633159,1731048014733,-500.0,0.00031357,120]
[341633160,1731048014756,-500.0,0.00031357,120]
[341633161,1731048014780,-500.0,0.00031357,120]
[341633162,1731048014813,-500.0,0.00031357,120]
[341633163,1731048014838,-500.0,0.00031357,120]
[341633164,1731048014863,-500.0,0.00031357,120]
[341633165,1731048014886,-500.0,0.00031357,120]
[341633166,1731048014912,-500.0,0.00031357,120]
[341633167,1731048014935,-500.0,0.00031357,120]
[341633168,1731048014959,-500.0,0.00031357,120]
[341633169,1731048014983,-500.0,0.00031357,120]
[341633170,1731048015007,-500.0,0.00031357,120]
[341633171,1731048015031,-500.0,0.00031357,120]
[341633172,1731048015054,-500.0,0.00031357,120]
[341633173,1731048015077,-500.0,0.00031357,120]
[341633174,1731048015099,-336.09,0.00031357,120]
[341633175,1731048015120,-500.0,0.00031357,120]
[341633176,1731048015144,-500.0,0.00031357,120]
[341633177,1731048015166,-500.0,0.00031357,120]
[341633178,1731048015186,-500.0,0.00031357,120]
[341633179,1731048015311,-500.0,0.00031357,120]
[341633180,1731048015334,-500.0,0.00031357,120]
[341633181,1731048015356,-500.0,0.00031357,120]
[341633182,1731048015378,-500.0,0.00031357,120]
[341633183,1731048015403,-500.0,0.00031357,120]
[341633184,1731048015424,-500.0,0.00031357,120]
[341633185,1731048015446,-500.0,0.00031357,120]
[341633186,1731048015467,-219.83,0.00031357,120]
[341633187,1731048015489,-500.0,0.00031357,120]
[341633188,1731048015512,-500.0,0.00031357,120]
[341633189,1731048015534,-500.0,0.00031357,120]
[341633190,1731048015554,-500.0,0.00031357,120]
[341633191,1731048015575,-500.0,0.00031357,120]
[341633192,1731048015596,-500.0,0.00031357,120]
[341633193,1731048015617,-500.0,0.00031357,120]
[341633194,1731048015644,-151.0,0.00031863,120]
[341633195,1731048015666,-556.497,0.000319,120]
[341633196,1731048015688,-378.10108707,0.00031945,120]
[341633197,1731048015710,-252.0,0.00032,120]
[341633198,1731048015733,-4796.0,0.00032054,120]
[341633199,1731048015760,-151.0,0.00032301,120]
[341633200,1731048015785,-581.626384,0.00032358,120]
[341633201,1731048015808,-205.50801582,0.000325,120]
[341633202,1731048015832,-354.8658,0.000328,120]
[341633203,1731048015853,-174392.20041964,0.000328,120]
[341633204,1731048178837,-3000.0,0.00020943,2]
[341633205,1731048178857,-192.48542165,0.000212,2]
[341633206,1731048178879,-500.0,0.00021916,2]
[341633207,1731048178901,-500.0,0.00021916,2]
[341633208,1731048178922,-500.0,0.00021916,2]
[341633209,1731048178942,-182.11648274,0.00021916,2]
[341633210,1731048178963,-500.0,0.00021916,2]
[341633211,1731048178983,-500.0,0.00021916,2]
[341633212,1731048179005,-204.42399103,0.00021916,2]
[341633213,1731048179026,-500.0,0.00021916,2]
[341633214,1731048179046,-500.0,0.00021916,2]
[341633215,1731048179067,-500.0,0.00021916,2]
[341633216,1731048179087,-500.0,0.00021916,2]
[341633217,1731048179108,-500.0,0.00021916,2]
[341633218,1731048179128,-500.0,0.00021916,2]
[341633219,1731048179149,-500.0,0.00021916,2]
[341633220,1731048179170,-200.0,0.00021916,2]
[341633221,1731048179191,-500.0,0.00021916,2]
[341633222,1731048179212,-500.0,0.00021916,2]
[341633223,1731048179233,-500.0,0.00021916,2]
[341633224,1731048179256,-500.0,0.00021916,2]
[341633225,1731048179278,-500.0,0.00021916,2]
[341633226,1731048179298,-500.0,0.00021916,2]
[341633227,1731048179318,-500.0,0.00021916,2]
[341633228,1731048179338,-605.76655571,0.00021916,2]
[341633229,1731048179359,-500.0,0.00021916,2]
[341633230,1731048179379,-500.0,0.00021916,2]
[341633231,1731048179401,-500.0,0.00021916,2]
[341633232,1731048179424,-500.0,0.00021916,2]
[341633233,1731048179446,-500.0,0.00021916,2]
[341633234,1731048179468,-500.0,0.00021916,2]
[341633235,1731048179491,-500.0,0.00021916,2]
[341633236,1731048179518,-500.0,0.00021916,2]
[341633237,1731048179541,-500.0,0.00021916,2]
[341633238,1731048179567,-500.0,0.00021916,2]
[341633239,1731048179589,-500.0,0.00021916,2]
[341633240,1731048179613,-500.0,0.00021916,2]
[341633241,1731048179635,-500.0,0.00021916,2]
[341633242,1731048179658,-500.0,0.00021916,2]
[341633243,1731048179680,-500.0,0.00021916,2]
[341633244,1731048179702,-500.0,0.00021916,2]
[341633245,1731048179724,-500.0,0.00021916,2]
[341633246,1731048179746,-500.0,0.00021916,2]
[341633247,1731048179774,-500.0,0.00021916,2]
[341633248,1731048179796,-500.0,0.00021916,2]
[341633249,1731048179818,-500.0,0.00021916,2]
[341633250,1731048179842,-500.0,0.00021916,2]
[341633251,1731048179862,-500.0,0.00021916,2]
[341633252,1731048179884,-500.0,0.00021916,2]
[341633253,1731048179906,-500.0,0.00021916,2]
[341633254,1731048179927,-500.0,0.00021916,2]
[341633255,1731048179948,-500.0,0.00021916,2]
[341633256,1731048179970,-500.0,0.00021916,2]
[341633257,1731048179992,-500.0,0.00021916,2]
[341633258,1731048180016,-500.0,0.00021916,2]
[341633259,1731048180039,-500.0,0.00021916,2]
[341633260,1731048180063,-500.0,0.00021916,2]
[341633261,1731048180085,-500.0,0.00021916,2]
[341633262,1731048180108,-500.0,0.00021916,2]
[341633263,1731048180131,-500.0,0.00021916,2]
[341633264,1731048180155,-500.0,0.00021916,2]
[341633265,1731048180178,-500.0,0.00021916,2]
[341633266,1731048180201,-500.0,0.00021916,2]
[341633267,1731048180224,-500.0,0.00021916,2]
[341633268,1731048180246,-500.0,0.00021916,2]
[341633269,1731048180269,-500.0,0.00021916,2]
[341633270,1731048180290,-500.0,0.00021916,2]
[341633271,1731048180312,-500.0,0.00021916,2]
[341633272,1731048180333,-500.0,0.00021916,2]